fUSD/lending_fUSD_20260118
["ID","MTS","AMOUNT","RATE_DAILY","PERIOD"]
[402529451,1768698654038,-500.0,0.00016986,2]
[402529452,1768698654048,-500.0,0.00016986,2]
[402529453,1768698654057,-500.0,0.00016986,2]
[402529454,1768698654067,-500.0,0.00016986,2]
[402529455,1768698654077,-500.0,0.00016986,2]
[402529456,1768698654087,-500.0,0.00016986,2]
[402529457,1768698654097,-500.0,0.00016986,2]
[402529458,1768698654106,-500.0,0.00016986,2]
[402529459,1768698654116,-500.0,0.00016986,2]
[402529460,1768698654125,-500.0,0.00016986,2]
[402529461,1768698654134,-500.0,0.00016986,2]
[402529462,1768698654143,-500.0,0.00016986,2]
[402529463,1768698654153,-500.0,0.00016986,2]
[402529464,1768698654163,-304.50059478,0.00016986,2]
[402529465,1768698654172,-500.0,0.00016986,2]
[402529466,1768698654182,-500.0,0.00016986,2]
[402529467,1768698654192,-500.0,0.00016986,2]
[402529468,1768698654200,-500.0,0.00016986,2]
[402529469,1768698654210,-500.0,0.00016986,2]
[402529470,1768698654224,-500.0,0.00016986,2]
[402529471,1768698654235,-500.0,0.00016986,2]
[402529472,1768698654245,-782.63,0.00016986,2]
[402529473,1768698654256,-500.0,0.00016986,2]
[402529474,1768698654265,-500.0,0.00016986,2]
[402529475,1768698654274,-500.0,0.00016986,2]
[402529476,1768698654286,-500.0,0.00016986,2]
[402529477,1768698654296,-500.0,0.00016986,2]
[402529478,1768698654305,-500.0,0.00016986,2]
[402529479,1768698654316,-500.0,0.00016986,2]
[402529480,1768698654327,-510.91,0.00016986,2]
[402529481,1768698654338,-500.0,0.00016986,2]
[402529482,1768698654349,-500.0,0.00016986,2]
[402529483,1768698654361,-300.0,0.00016986,2]
[402529484,1768698654372,-276.40809616,0.00016986,2]
[402529485,1768698654382,-500.0,0.00016986,2]
[402529486,1768698654391,-500.0,0.00016986,2]
[402529487,1768698654400,-679.15,0.00016986,2]
[402529488,1768698654410,-622.28,0.00016986,2]
[402529489,1768698654419,-500.0,0.00016986,2]
[402529490,1768698654429,-741.27,0.00016986,2]
[402529491,1768698654438,-500.0,0.00016986,2]
[402529492,1768698654448,-500.0,0.00016986,2]
[402529493,1768698654457,-500.0,0.00016986,2]
[402529494,1768698654467,-1336.75,0.00016986,2]
[402529495,1768698654477,-500.0,0.00016986,2]
[402529496,1768698654486,-500.0,0.00016986,2]
[402529497,1768698654497,-500.0,0.00016986,2]
[402529498,1768698654507,-500.0,0.00016986,2]
[402529499,1768698654517,-500.0,0.00016986,2]
[402529500,1768698654527,-500.0,0.00016986,2]
[402529501,1768698654536,-500.0,0.00016986,2]
[402529502,1768698654546,-500.0,0.00016986,2]
[402529503,1768698654555,-500.0,0.00016986,2]
[402529504,1768698654567,-527.62,0.00016986,2]
[402529505,1768698654577,-500.0,0.00016986,2]
[402529506,1768698654586,-655.43,0.00016986,2]
[402529507,1768698654596,-500.0,0.00016986,2]
[402529508,1768698654606,-500.0,0.00016986,2]
[402529509,1768698654615,-500.0,0.00016986,2]
[402529510,1768698654625,-809.56,0.00016986,2]
[402529511,1768698654635,-500.0,0.00016986,2]
[402529512,1768698654644,-500.0,0.00016986,2]
[402529513,1768698654653,-643.54,0.00016986,2]
[402529514,1768698654663,-500.0,0.00016986,2]
[402529515,1768698654673,-500.0,0.00016986,2]
[402529516,1768698654682,-384.93640031,0.00016986,2]
[402529517,1768698654692,-500.0,0.00016986,2]
[402529518,1768698654701,-500.0,0.00016986,2]
[402529519,1768698654711,-812.63,0.00016986,2]
[402529520,1768698654721,-500.0,0.00016986,2]
[402529521,1768698654731,-500.0,0.00016986,2]
[402529522,1768698654740,-500.0,0.00016986,2]
[402529523,1768698654750,-500.0,0.00016986,2]
[402529524,1768698654759,-500.0,0.00016986,2]
[402529525,1768698654769,-500.0,0.00016986,2]
[402529526,1768698654779,-500.0,0.00016986,2]
[402529527,1768698654789,-500.0,0.00016986,2]
[402529528,1768698654798,-500.0,0.00016986,2]
[402529529,1768698654807,-500.0,0.00016986,2]
[402529530,1768698654816,-576.26269001,0.00016986,2]
[402529531,1768698654825,-500.0,0.00016986,2]
[402529532,1768698654835,-500.0,0.00016986,2]
[402529533,1768698654843,-500.0,0.00016986,2]
[402529534,1768698654853,-500.0,0.00016986,2]
[402529535,1768698654864,-500.0,0.00016986,2]
[402529536,1768698654875,-500.0,0.00016986,2]
[402529537,1768698654885,-500.0,0.00016986,2]
[402529538,1768698654894,-500.0,0.00016986,2]
[402529539,1768698654904,-500.0,0.00016986,2]
[402529540,1768698654915,-500.0,0.00016986,2]
[402529541,1768698654924,-500.0,0.00016986,2]
[402529542,1768698654934,-500.0,0.00016986,2]
[402529543,1768698654944,-934.13,0.00016986,2]
[402529544,1768698654956,-500.0,0.00016986,2]
[402529545,1768698654967,-500.0,0.00016986,2]
[402529546,1768698654977,-500.0,0.00016986,2]
[402529547,1768698654986,-500.0,0.00016986,2]
[402529548,1768698654996,-500.0,0.00016986,2]
[402529549,1768698655006,-597.67,0.00016986,2]
[402529550,1768698655016,-500.0,0.00016986,2]
[402529551,1768698655025,-494.43522003,0.00016986,2]
[402529552,1768698655946,-162.70477997,0.00016986,2]
[402529553,1768698655956,-212.33982003,0.00016986,2]
[402529554,1768698656586,-16050.58682671,0.00015217,2]
[402529555,1768698656596,-851.14017997,0.00016986,2]
[402529556,1768698656606,-500.0,0.00016986,2]
[402529557,1768698656616,-530.99,0.00016986,2]
[402529558,1768698656625,-500.0,0.00016986,2]
[402529559,1768698656636,-500.0,0.00016986,2]
[402529560,1768698656646,-500.0,0.00016986,2]
[402529561,1768698656660,-500.0,0.00016986,2]
[402529562,1768698656672,-650.57,0.00016986,2]
[402529563,1768698656682,-500.0,0.00016986,2]
[402529564,1768698656692,-500.0,0.00016986,2]
[402529565,1768698656702,-500.0,0.00016986,2]
[402529566,1768698656713,-667.99,0.00016986,2]
[402529567,1768698656722,-500.0,0.00016986,2]
[402529568,1768698656732,-500.0,0.00016986,2]
[402529569,1768698656743,-755.08,0.00016986,2]
[402529570,1768698656753,-609.3,0.00016986,2]
[402529571,1768698656763,-500.0,0.00016986,2]
[402529572,1768698656773,-151.0,0.00016986,2]
[402529573,1768698656783,-500.0,0.00016986,2]
[402529574,1768698656792,-514.83,0.00016986,2]
[402529575,1768698656802,-815.13,0.00016986,2]
[402529576,1768698656811,-562.14,0.00016986,2]
[402529577,1768698656820,-651.76289135,0.00016986,2]
[402529578,1768698656843,-26.24710865,0.00016986,2]
[402529579,1768698656853,-500.0,0.00016986,2]
[402529580,1768698656863,-538.34,0.00016986,2]
[402529581,1768698656873,-500.0,0.00016986,2]
[402529582,1768698656883,-500.0,0.00016986,2]
[402529583,1768698656894,-649.55636857,0.00016986,2]
[402529584,1768698656903,-1087.35,0.00016986,2]
[402529585,1768698656913,-722.12,0.00016986,2]
[402529586,1768698656925,-500.0,0.00016986,2]
[402529587,1768698656935,-500.0,0.00016986,2]
[402529588,1768698656944,-500.0,0.00016986,2]
[402529589,1768698656954,-500.0,0.00016986,2]
[402529590,1768698656964,-500.0,0.00016986,2]
[402529591,1768698656973,-996.94,0.00016986,2]
[402529592,1768698656983,-500.0,0.00016986,2]
[402529593,1768698656993,-500.0,0.00016986,2]
[402529594,1768698657002,-590.76,0.00016986,2]
[402529595,1768698657012,-500.0,0.00016986,2]
[402529596,1768698657022,-500.0,0.00016986,2]
[402529597,1768698657032,-500.0,0.00016986,2]
[402529598,1768698657042,-525.89,0.00016986,2]
[402529599,1768698657052,-500.0,0.00016986,2]
[402529600,1768698657061,-500.0,0.00016986,2]
[402529601,1768698657071,-618.01,0.00016986,2]
[402529602,1768698657081,-594.13,0.00016986,2]
[402529603,1768698657091,-575.6,0.00016986,2]
[402529604,1768698657101,-662.62,0.00016986,2]
[402529605,1768698657111,-500.0,0.00016986,2]
[402529606,1768698657121,-500.0,0.00016986,2]
[402529607,1768698657130,-644.82805153,0.00016986,2]
[402529608,1768698657140,-500.0,0.00016986,2]
[402529609,1768698657149,-672.53,0.00016986,2]
[402529610,1768698657159,-500.0,0.00016986,2]
[402529611,1768698657169,-500.0,0.00016986,2]
[402529612,1768698657178,-500.0,0.00016986,2]
[402529613,1768698657188,-500.0,0.00016986,2]
[402529614,1768698657198,-520.69,0.00016986,2]
[402529615,1768698657207,-500.0,0.00016986,2]
[402529616,1768698657221,-613.06,0.00016986,2]
[402529617,1768698657232,-500.0,0.00016986,2]
[402529618,1768698657241,-500.0,0.00016986,2]
[402529619,1768698657251,-500.0,0.00016986,2]
[402529620,1768698657264,-500.0,0.00016986,2]
[402529621,1768698657274,-526.73,0.00016986,2]
[402529622,1768698657283,-500.0,0.00016986,2]
[402529623,1768698657295,-500.0,0.00016986,2]
[402529624,1768698657304,-512.15,0.00016986,2]
[402529625,1768698657313,-500.0,0.00016986,2]
[402529626,1768698657323,-203.88187364,0.00016986,2]
[402529627,1768698657333,-500.0,0.00016986,2]
[402529628,1768698657343,-591.24,0.00016986,2]
[402529629,1768698657354,-556.47,0.00016986,2]
[402529630,1768698657363,-660.93,0.00016986,2]
[402529631,1768698657373,-515.32,0.00016986,2]
[402529632,1768698657382,-500.0,0.00016986,2]
[402529633,1768698657392,-500.0,0.00016986,2]
[402529634,1768698657402,-500.0,0.00016986,2]
[402529635,1768698657411,-500.0,0.00016986,2]
[402529636,1768698657420,-500.0,0.00016986,2]
[402529637,1768698657430,-428.24915405,0.00016986,2]
[402529638,1768698657440,-603.01761465,0.00016986,2]
[402529639,1768698657450,-500.0,0.00016986,2]
[402529640,1768698657459,-500.0,0.00016986,2]
[402529641,1768698657469,-517.54,0.00016986,2]
[402529642,1768698657478,-500.0,0.00016986,2]
[402529643,1768698657488,-500.0,0.00016986,2]
[402529644,1768698657498,-531.76,0.00016986,2]
[402529645,1768698657508,-352.75760895,0.00016986,2]
[402529646,1768698657518,-500.0,0.00016986,2]
[402529647,1768698657527,-500.0,0.00016986,2]
[402529648,1768698657537,-500.0,0.00016986,2]
[402529649,1768698657547,-500.0,0.00016986,2]
[402529650,1768698657556,-600.68,0.00016986,2]
[402529651,1768698657566,-1529.19,0.00016986,2]
[402529652,1768698657576,-500.0,0.00016986,2]
[402529653,1768698657586,-500.0,0.00016986,2]
[402529654,1768698657595,-500.0,0.00016986,2]
[402529655,1768698657607,-500.0,0.00016986,2]
[402529656,1768698657616,-838.7,0.00016986,2]
[402529657,1768698657626,-500.0,0.00016986,2]
[402529658,1768698657636,-500.0,0.00016986,2]
[402529659,1768698657646,-567.94,0.00016986,2]
[402529660,1768698657656,-518.89,0.00016986,2]
[402529661,1768698657666,-673.61,0.00016986,2]
[402529662,1768698657676,-543.14,0.00016986,2]
[402529663,1768698657686,-721.15,0.00016986,2]
[402529664,1768698657695,-500.0,0.00016986,2]
[402529665,1768698657706,-500.0,0.00016986,2]
[402529666,1768698657716,-500.0,0.00016986,2]
[402529667,1768698657726,-500.0,0.00016986,2]
[402529668,1768698657735,-500.0,0.00016986,2]
[402529669,1768698657745,-505.41790693,0.00016986,2]
[402529670,1768698657754,-500.0,0.00016986,2]
[402529671,1768698657764,-500.0,0.00016986,2]
[402529672,1768698657775,-795.04,0.00016986,2]
[402529673,1768698657784,-500.0,0.00016986,2]
[402529674,1768698657794,-500.0,0.00016986,2]
[402529675,1768698657804,-500.0,0.00016986,2]
[402529676,1768698657814,-500.0,0.00016986,2]
[402529677,1768698657823,-747.61,0.00016986,2]
[402529678,1768698657832,-500.0,0.00016986,2]
[402529679,1768698657841,-500.0,0.00016986,2]
[402529680,1768698657850,-532.71,0.00016986,2]
[402529681,1768698657860,-500.0,0.00016986,2]
[402529682,1768698657869,-500.0,0.00016986,2]
[402529683,1768698657878,-500.0,0.00016986,2]
[402529684,1768698657888,-500.0,0.00016986,2]
[402529685,1768698657898,-500.0,0.00016986,2]
[402529686,1768698657907,-564.09,0.00016986,2]
[402529687,1768698657917,-500.0,0.00016986,2]
[402529688,1768698657927,-880.67,0.00016986,2]
[402529689,1768698657937,-500.0,0.00016986,2]
[402529690,1768698657946,-500.0,0.00016986,2]
[402529691,1768698657955,-583.61,0.00016986,2]
[402529692,1768698657965,-500.0,0.00016986,2]
[402529693,1768698657975,-500.0,0.00016986,2]
[402529694,1768698657984,-500.0,0.00016986,2]
[402529695,1768698657993,-500.0,0.00016986,2]
[402529696,1768698658002,-998.71,0.00016986,2]
[402529697,1768698658012,-500.0,0.00016986,2]
[402529698,1768698658022,-500.0,0.00016986,2]
[402529699,1768698658032,-500.0,0.00016986,2]
[402529700,1768698658042,-500.0,0.00016986,2]
[402529701,1768698658051,-500.0,0.00016986,2]
[402529702,1768698658060,-876.66,0.00016986,2]
[402529703,1768698658070,-500.0,0.00016986,2]
[402529704,1768698658079,-500.0,0.00016986,2]
[402529705,1768698658088,-500.0,0.00016986,2]
[402529706,1768698658098,-510.62,0.00016986,2]
[402529707,1768698658107,-500.0,0.00016986,2]
[402529708,1768698658116,-500.0,0.00016986,2]
[402529709,1768698658126,-500.0,0.00016986,2]
[402529710,1768698658135,-500.0,0.00016986,2]
[402529711,1768698658144,-500.0,0.00016986,2]
[402529712,1768698658153,-890.18,0.00016986,2]
[402529713,1768698658163,-500.0,0.00016986,2]
[402529714,1768698658172,-500.0,0.00016986,2]
[402529715,1768698658181,-811.3,0.00016986,2]
[402529716,1768698658190,-500.0,0.00016986,2]
[402529717,1768698658199,-617.05324187,0.00016986,2]
[402529718,1768698658209,-500.0,0.00016986,2]
[402529719,1768698658220,-500.0,0.00016986,2]
[402529720,1768698658229,-500.0,0.00016986,2]
[402529721,1768698658238,-500.0,0.00016986,2]
[402529722,1768698658248,-500.0,0.00016986,2]
[402529723,1768698658257,-617.43,0.00016986,2]
[402529724,1768698658266,-742.02,0.00016986,2]
[402529725,1768698658275,-500.0,0.00016986,2]
[402529726,1768698658284,-601.67,0.00016986,2]
[402529727,1768698658294,-521.55,0.00016986,2]
[402529728,1768698658302,-500.0,0.00016986,2]
[402529729,1768698658311,-1195.2,0.00016986,2]
[402529730,1768698658320,-676.44,0.00016986,2]
[402529731,1768698658329,-715.07,0.00016986,2]
[402529732,1768698658338,-945.1,0.00016986,2]
[402529733,1768698658347,-500.0,0.00016986,2]
[402529734,1768698658356,-576.18,0.00016986,2]
[402529735,1768698658366,-500.0,0.00016986,2]
[402529736,1768698658375,-500.0,0.00016986,2]
[402529737,1768698658384,-500.0,0.00016986,2]
[402529738,1768698658392,-500.0,0.00016986,2]
[402529739,1768698658498,-929.43,0.00016986,2]
[402529740,1768698658507,-658.51,0.00016986,2]
[402529741,1768698658516,-500.0,0.00016986,2]
[402529742,1768698658525,-500.0,0.00016986,2]
[402529743,1768698658534,-1186.57,0.00016986,2]
[402529744,1768698658542,-1058.82722253,0.00016986,2]
[402529745,1768698658552,-500.0,0.00016986,2]
[402529746,1768698658561,-804.65,0.00016986,2]
[402529747,1768698658569,-500.0,0.00016986,2]
[402529748,1768698658578,-556.52,0.00016986,2]
[402529749,1768698658587,-500.0,0.00016986,2]
[402529750,1768698658595,-500.0,0.00016986,2]
[402529751,1768698658605,-500.0,0.00016986,2]
[402529752,1768698658614,-500.0,0.00016986,2]
[402529753,1768698658623,-958.14,0.00016986,2]
[402529754,1768698658631,-500.0,0.00016986,2]
[402529755,1768698658639,-567.08,0.00016986,2]
[402529756,1768698658648,-872.91,0.00016986,2]
[402529757,1768698658657,-500.0,0.00016986,2]
[402529758,1768698658666,-500.0,0.00016986,2]
[402529759,1768698658675,-833.89,0.00016986,2]
[402529760,1768698658683,-500.0,0.00016986,2]
[402529761,1768698658692,-839.94,0.00016986,2]
[402529762,1768698658701,-500.0,0.00016986,2]
[402529763,1768698658710,-707.98,0.00016986,2]
[402529764,1768698658718,-500.0,0.00016986,2]
[402529765,1768698658727,-963.32,0.00016986,2]
[402529766,1768698658736,-500.0,0.00016986,2]
[402529767,1768698658745,-567.81,0.00016986,2]
[402529768,1768698658755,-500.0,0.00016986,2]
[402529769,1768698658764,-500.0,0.00016986,2]
[402529770,1768698658772,-500.0,0.00016986,2]
[402529771,1768698658781,-500.0,0.00016986,2]
[402529772,1768698658790,-500.0,0.00016986,2]
[402529773,1768698658798,-500.0,0.00016986,2]
[402529774,1768698658807,-1118.6,0.00016986,2]
[402529775,1768698658816,-500.0,0.00016986,2]
[402529776,1768698658825,-500.0,0.00016986,2]
[402529777,1768698658834,-579.96,0.00016986,2]
[402529778,1768698658843,-767.08,0.00016986,2]
[402529779,1768698658852,-500.0,0.00016986,2]
[402529780,1768698658861,-597.37,0.00016986,2]
[402529781,1768698658870,-500.0,0.00016986,2]
[402529782,1768698658879,-926.65,0.00016986,2]
[402529783,1768698658889,-500.0,0.00016986,2]
[402529784,1768698658898,-526.05,0.00016986,2]
[402529785,1768698658910,-1077.63,0.00016986,2]
[402529786,1768698658919,-500.0,0.00016986,2]
[402529787,1768698658928,-838.61,0.00016986,2]
[402529788,1768698658937,-500.0,0.00016986,2]
[402529789,1768698658947,-587.08,0.00016986,2]
[402529790,1768698658956,-500.0,0.00016986,2]
[402529791,1768698658965,-522.86,0.00016986,2]
[402529792,1768698658975,-500.0,0.00016986,2]
[402529793,1768698658984,-564.65,0.00016986,2]
[402529794,1768698658993,-500.0,0.00016986,2]
[402529795,1768698659002,-500.0,0.00016986,2]
[402529796,1768698659011,-500.0,0.00016986,2]
[402529797,1768698659021,-500.0,0.00016986,2]
[402529798,1768698659031,-513.81,0.00016986,2]
[402529799,1768698659041,-512.65,0.00016986,2]
[402529800,1768698659051,-500.0,0.00016986,2]
[402529801,1768698659060,-503.46,0.00016986,2]
[402529802,1768698659070,-750.04,0.00016986,2]
[402529803,1768698659079,-1013.69,0.00016986,2]
[402529804,1768698659088,-653.37,0.00016986,2]
[402529805,1768698659097,-500.0,0.00016986,2]
[402529806,1768698659107,-500.0,0.00016986,2]
[402529807,1768698659116,-500.0,0.00016986,2]
[402529808,1768698659126,-512.66,0.00016986,2]
[402529809,1768698659136,-500.0,0.00016986,2]
[402529810,1768698659145,-863.05,0.00016986,2]
[402529811,1768698659155,-500.0,0.00016986,2]
[402529812,1768698659163,-500.0,0.00016986,2]
[402529813,1768698659172,-500.0,0.00016986,2]
[402529814,1768698659181,-500.0,0.00016986,2]
[402529815,1768698659190,-500.0,0.00016986,2]
[402529816,1768698659199,-500.0,0.00016986,2]
[402529817,1768698659208,-500.0,0.00016986,2]
[402529818,1768698659219,-500.0,0.00016986,2]
[402529819,1768698659228,-994.07,0.00016986,2]
[402529820,1768698659237,-500.0,0.00016986,2]
[402529821,1768698659246,-787.16,0.00016986,2]
[402529822,1768698659256,-500.0,0.00016986,2]
[402529823,1768698659266,-500.0,0.00016986,2]
[402529824,1768698659275,-500.0,0.00016986,2]
[402529825,1768698659284,-500.0,0.00016986,2]
[402529826,1768698659294,-500.0,0.00016986,2]
[402529827,1768698659303,-608.92,0.00016986,2]
[402529828,1768698659313,-500.0,0.00016986,2]
[402529829,1768698659322,-500.0,0.00016986,2]
[402529830,1768698659332,-500.0,0.00016986,2]
[402529831,1768698659341,-500.0,0.00016986,2]
[402529832,1768698659351,-500.0,0.00016986,2]
[402529833,1768698659361,-500.0,0.00016986,2]
[402529834,1768698659371,-500.0,0.00016986,2]
[402529835,1768698659380,-671.86,0.00016986,2]
[402529836,1768698659390,-676.09,0.00016986,2]
[402529837,1768698659399,-565.03,0.00016986,2]
[402529838,1768698659408,-600.96906019,0.00016986,2]
[402529839,1768698659417,-500.0,0.00016986,2]
[402529840,1768698659426,-500.0,0.00016986,2]
[402529841,1768698659435,-500.0,0.00016986,2]
[402529842,1768698659444,-500.0,0.00016986,2]
[402529843,1768698659452,-500.0,0.00016986,2]
[402529844,1768698659461,-9019.17,0.00016986,2]
[402529845,1768698659470,-500.0,0.00016986,2]
[402529846,1768698659478,-500.0,0.00016986,2]
[402529847,1768698659487,-500.0,0.00016986,2]
[402529848,1768698659496,-500.0,0.00016986,2]
[402529849,1768698659505,-600.0,0.00016986,2]
[402529850,1768698659514,-425.29992997,0.00016986,2]
[402529851,1768698659523,-1000.0,0.00016986,2]
[402529852,1768698659532,-150.0,0.00016987,2]
[402529853,1768698659541,-150.0,0.00016989,2]
[402529854,1768698659550,-5799.39274959,0.00017,2]
[402529855,1768698659559,-767.05,0.00017,2]
[402529856,1768698659568,-250.0,0.00017,2]
[402529857,1768698659576,-150.0,0.00017014,2]
[402529858,1768698659585,-150.0,0.00017031,2]
[402529859,1768698659594,-187.78006525,0.00017038,2]
[402529860,1768698659602,-617.40005154,0.00017038,2]
[402529861,1768698659611,-150.0,0.00017038,2]
[402529862,1768698659620,-1325.48,0.00017041,2]
[402529863,1768698659630,-425.29992997,0.00017041,2]
[402529864,1768698659639,-166.66,0.00017047,2]
[402529865,1768698659649,-150.0,0.00017047,2]
[402529866,1768698659658,-519.7142044,0.00017048,2]
[402529867,1768698659668,-150.0,0.00017063,2]
[402529868,1768698659678,-1624.4,0.00017064,2]
[402529869,1768698659688,-1000.0,0.00017078,2]
[402529870,1768698659696,-150.0,0.00017088,2]
[402529871,1768698659706,-150.0,0.000171,2]
[402529872,1768698659716,-150.0,0.000171,2]
[402529873,1768698659725,-150.0,0.000171,2]
[402529874,1768698659736,-150.0,0.000171,2]
[402529875,1768698659745,-150.0,0.000171,2]
[402529876,1768698659755,-150.0,0.000171,2]
[402529877,1768698659765,-3275.0,0.00017106,2]
[402529878,1768698659774,-1000.0,0.00017112,2]
[402529879,1768698659783,-150.0,0.00017112,2]
[402529880,1768698659792,-213.0,0.00017115,2]
[402529881,1768698659801,-265.0,0.00017115,2]
[402529882,1768698659810,-150.0,0.00017115,2]
[402529883,1768698659819,-200.0,0.00017115,2]
[402529884,1768698659827,-425.29992997,0.00017123,2]
[402529885,1768698659836,-3275.0,0.00017132,2]
[402529886,1768698659845,-150.0,0.00017137,2]
[402529887,1768698659854,-194.69,0.00017148,2]
[402529888,1768698659863,-250.0,0.00017148,2]
[402529889,1768698659871,-227.034,0.00017148,2]
[402529890,1768698659880,-150.0,0.00017148,2]
[402529891,1768698659889,-157.617,0.00017148,2]
[402529892,1768698659898,-250.0,0.00017148,2]
[402529893,1768698659907,-150.139,0.00017148,2]
[402529894,1768698659916,-191.112,0.00017148,2]
[402529895,1768698659924,-163.988,0.00017148,2]
[402529896,1768698659933,-212.17,0.00017148,2]
[402529897,1768698659942,-250.0,0.00017148,2]
[402529898,1768698659950,-230.28,0.00017148,2]
[402529899,1768698659959,-170.0,0.00017148,2]
[402529900,1768698659968,-615.0,0.00017148,2]
[402529901,1768698659977,-3472.0,0.00017148,2]
[402529902,1768698659985,-1407.0,0.00017148,2]
[402529903,1768698659994,-1331.0,0.00017148,2]
[402529904,1768698660003,-150.0,0.00017153,2]
[402529905,1768698660011,-200.0,0.00017156,2]
[402529906,1768698660020,-200.0,0.00017156,2]
[402529907,1768698660029,-1624.4,0.00017157,2]
[402529908,1768698660038,-6895.3088,0.0001716,2]
[402529909,1768698660047,-150.0,0.00017162,2]
[402529910,1768698660055,-150.0,0.00017169,2]
[402529911,1768698660064,-425.29992997,0.00017178,2]
[402529912,1768698660073,-295.87496328,0.00017184,2]
[402529913,1768698660082,-150.0,0.00017186,2]
[402529914,1768698660091,-150.0,0.00017189,2]
[402529915,1768698660102,-980.0,0.000172,2]
[402529916,1768698660112,-150.0,0.00017204,2]
[402529917,1768698660121,-150.0,0.00017211,2]
[402529918,1768698660130,-150.0,0.00017212,2]
[402529919,1768698660140,-519.71420438,0.00017218,2]
[402529920,1768698660150,-341.0,0.0001722,2]
[402529921,1768698660159,-150.0,0.00017236,2]
[402529922,1768698660169,-150.0,0.00017238,2]
[402529923,1768698660179,-150.0,0.0001725,2]
[402529924,1768698660188,-1624.4,0.00017251,2]
[402529925,1768698660198,-848.64,0.00017258,2]
[402529926,1768698660208,-150.0,0.00017259,2]
[402529927,1768698660220,-300.0,0.00017259,2]
[402529928,1768698660231,-158.682215,0.0001726,2]
[402529929,1768698660240,-203.6618,0.0001726,2]
[402529930,1768698660249,-167.518155,0.0001726,2]
[402529931,1768698660259,-167.518155,0.0001726,2]
[402529932,1768698660269,-158.682215,0.0001726,2]
[402529933,1768698660279,-158.682215,0.0001726,2]
[402529934,1768698660289,-203.6618,0.0001726,2]
[402529935,1768698660298,-203.6618,0.0001726,2]
[402529936,1768698660307,-541.01131972,0.0001726,2]
[402529937,1768698660317,-500.0,0.0001726,2]
[402529938,1768698660327,-500.0,0.0001726,2]
[402529939,1768698660336,-531.4,0.0001726,2]
[402529940,1768698660345,-500.0,0.0001726,2]
[402529941,1768698660355,-500.0,0.0001726,2]
[402529942,1768698660364,-569.32,0.0001726,2]
[402529943,1768698660373,-500.0,0.0001726,2]
[402529944,1768698660383,-500.0,0.0001726,2]
[402529945,1768698660392,-500.0,0.0001726,2]
[402529946,1768698660402,-500.0,0.0001726,2]
[402529947,1768698660413,-500.0,0.0001726,2]
[402529948,1768698660422,-500.0,0.0001726,2]
[402529949,1768698660431,-500.0,0.0001726,2]
[402529950,1768698660441,-500.0,0.0001726,2]